[Event "Titled Tuesday Blitz January 17 Early 2023"]
[White "Krivonosov, Oleg"]
[Black "Mouhamad, Joachim"]
[WhiteFideId "11600349"]
[BlackFideId "656410"]
[WhiteElo "2359"]
[BlackElo "2238"]
[Result "1-0"]
[Round "02"]
[TimeControl "180+2"]
[Date "2023.01.17"]
[WhiteClock "0:00:16"]
[BlackClock "0:00:03"]

1. Nf3 {[%clk 0:03:00]}  d5 {[%clk 0:02:59]} 2. d4 {[%clk 0:03:00]}  e6 {[%clk 0:02:59]} 3. c4 {[%clk 0:03:00]}  a6 {[%clk 0:02:59]} 4. Bg5 {[%clk 0:02:59]}  Be7 {[%clk 0:02:59]} 5. Bxe7 {[%clk 0:02:59]}  Nxe7 {[%clk 0:02:59]} 6. Nbd2 {[%clk 0:02:57]}  O-O {[%clk 0:02:57]} 7. g3 {[%clk 0:02:57]}  Nd7 {[%clk 0:02:56]} 8. Bg2 {[%clk 0:02:57]}  dxc4 {[%clk 0:02:46]} 9. Nxc4 {[%clk 0:02:56]}  b5 {[%clk 0:02:47]} 10. Nce5 {[%clk 0:02:48]}  Bb7 {[%clk 0:02:40]} 11. Nxd7 {[%clk 0:02:44]}  Qxd7 {[%clk 0:02:39]} 12. O-O {[%clk 0:02:43]}  Be4 {[%clk 0:02:27]} 13. Rc1 {[%clk 0:02:39]}  Rfd8 {[%clk 0:02:24]} 14. Qb3 {[%clk 0:02:37]}  Bd5 {[%clk 0:02:22]} 15. Qc2 {[%clk 0:02:35]}  a5 {[%clk 0:02:20]} 16. Qxc7 {[%clk 0:02:26]}  Ra7 {[%clk 0:02:08]} 17. Qxd7 {[%clk 0:02:24]}  Raxd7 {[%clk 0:02:09]} 18. Rc5 {[%clk 0:02:10]}  Bxa2 {[%clk 0:02:00]} 19. e3 {[%clk 0:01:53]}  Bc4 {[%clk 0:01:49]} 20. Ra1 {[%clk 0:01:51]}  Ra7 {[%clk 0:01:39]} 21. Ne5 {[%clk 0:01:49]}  Rc8 {[%clk 0:01:31]} 22. Nxc4 {[%clk 0:01:34]}  Rxc5 {[%clk 0:01:20]} 23. dxc5 {[%clk 0:01:35]}  bxc4 {[%clk 0:01:20]} 24. Ra4 {[%clk 0:01:30]}  c3 {[%clk 0:01:16]} 25. bxc3 {[%clk 0:01:27]}  Kf8 {[%clk 0:01:14]} 26. Bf1 {[%clk 0:01:14]}  Nd5 {[%clk 0:01:02]} 27. Ra3 {[%clk 0:01:12]}  f5 {[%clk 0:00:50]} 28. Bb5 {[%clk 0:01:09]}  Ke7 {[%clk 0:00:47]} 29. c4 {[%clk 0:01:09]}  Nc7 {[%clk 0:00:38]} 30. f4 {[%clk 0:01:08]}  e5 {[%clk 0:00:17]} 31. Kf2 {[%clk 0:01:06]}  e4 {[%clk 0:00:16]} 32. Ke1 {[%clk 0:01:03]}  Ne6 {[%clk 0:00:16]} 33. c6 {[%clk 0:01:02]}  Kd6 {[%clk 0:00:13]} 34. Kd2 {[%clk 0:01:03]}  Nc5 {[%clk 0:00:13]} 35. Kc3 {[%clk 0:01:02]}  h6 {[%clk 0:00:07]} 36. Ra1 {[%clk 0:01:00]}  g5 {[%clk 0:00:04]} 37. h4 {[%clk 0:00:56]}  g4 {[%clk 0:00:04]} 38. Rd1+ {[%clk 0:00:50]}  Kc7 {[%clk 0:00:04]} 39. Rd5 {[%clk 0:00:46]}  Kb6 {[%clk 0:00:03]} 40. Kb2 {[%clk 0:00:43]}  Nd3+ {[%clk 0:00:03]} 41. Ka3 {[%clk 0:00:41]}  Rf7 {[%clk 0:00:04]} 42. Rd8 {[%clk 0:00:35]}  Nc5 {[%clk 0:00:04]} 43. Rb8+ {[%clk 0:00:29]}  Kc7 {[%clk 0:00:05]} 44. Rh8 {[%clk 0:00:30]}  Rf6 {[%clk 0:00:04]} 45. Rh7+ {[%clk 0:00:29]}  Kb6 {[%clk 0:00:05]} 46. c7 {[%clk 0:00:21]}  Rf8 {[%clk 0:00:04]} 47. Rxh6+ {[%clk 0:00:18]}  Kb7 {[%clk 0:00:05]} 48. Rc6 {[%clk 0:00:18]}  Nd3 {[%clk 0:00:03]} 49. h5 {[%clk 0:00:17]}  Rc8 {[%clk 0:00:02]} 50. h6 {[%clk 0:00:17]}  Rxc7 {[%clk 0:00:02]} 51. Rxc7+ {[%clk 0:00:16]}  Kxc7 {[%clk 0:00:03]} 52. h7 {[%clk 0:00:16]} 1-0


[Site "https://www.chess.com"]

[Event "Titled Tuesday Blitz January 17 Early 2023"]
[White "Aradhya, Garg"]
[Black "Tarasova, Viktoriya"]
[WhiteFideId "25006746"]
[BlackFideId "4175840"]
[WhiteElo "2284"]
[BlackElo "2226"]
[Result "1/2-1/2"]
[Round "02"]
[TimeControl "180+2"]
[Date "2023.01.17"]
[WhiteClock "0:00:09"]
[BlackClock "0:00:17"]

1. d4 {[%clk 0:03:00]}  Nf6 {[%clk 0:02:59]} 2. Nf3 {[%clk 0:02:59]}  e6 {[%clk 0:02:58]} 3. Bg5 {[%clk 0:02:58]}  d5 {[%clk 0:02:57]} 4. e3 {[%clk 0:02:57]}  h6 {[%clk 0:02:57]} 5. Bh4 {[%clk 0:02:57]}  Nbd7 {[%clk 0:02:53]} 6. Nbd2 {[%clk 0:02:50]}  c5 {[%clk 0:02:52]} 7. c3 {[%clk 0:02:49]}  Bd6 {[%clk 0:02:50]} 8. e4 {[%clk 0:02:41]}  dxe4 {[%clk 0:02:43]} 9. Nxe4 {[%clk 0:02:40]}  Be7 {[%clk 0:02:44]} 10. Bxf6 {[%clk 0:02:35]}  gxf6 {[%clk 0:02:39]} 11. Bb5 {[%clk 0:02:34]}  Qb6 {[%clk 0:02:29]} 12. a4 {[%clk 0:02:29]}  a6 {[%clk 0:02:24]} 13. dxc5 {[%clk 0:02:28]}  Qc7 {[%clk 0:02:09]} 14. Bxd7+ {[%clk 0:01:44]}  Bxd7 {[%clk 0:02:08]} 15. Qd4 {[%clk 0:01:44]}  O-O-O {[%clk 0:02:05]} 16. Nd6+ {[%clk 0:01:41]}  Kb8 {[%clk 0:01:56]} 17. O-O-O {[%clk 0:01:37]}  e5 {[%clk 0:01:42]} 18. Qb4 {[%clk 0:01:33]}  a5 {[%clk 0:01:39]} 19. Qe4 {[%clk 0:00:54]}  Bc6 {[%clk 0:01:24]} 20. Qh4 {[%clk 0:00:36]}  Bxd6 {[%clk 0:01:16]} 21. cxd6 {[%clk 0:00:34]}  Rxd6 {[%clk 0:01:16]} 22. Rxd6 {[%clk 0:00:34]}  Qxd6 {[%clk 0:01:16]} 23. Rd1 {[%clk 0:00:35]}  Qe6 {[%clk 0:01:16]} 24. Nd2 {[%clk 0:00:16]}  Rd8 {[%clk 0:01:06]} 25. Qh3 {[%clk 0:00:14]}  Bxa4 {[%clk 0:00:47]} 26. Qxe6 {[%clk 0:00:13]}  fxe6 {[%clk 0:00:47]} 27. Re1 {[%clk 0:00:12]}  Bc6 {[%clk 0:00:46]} 28. g3 {[%clk 0:00:12]}  Kc7 {[%clk 0:00:41]} 29. f4 {[%clk 0:00:09]}  exf4 {[%clk 0:00:24]} 30. Rxe6 {[%clk 0:00:08]}  fxg3 {[%clk 0:00:23]} 31. hxg3 {[%clk 0:00:09]}  Rd3 {[%clk 0:00:20]} 32. Rxf6 {[%clk 0:00:09]}  Rxg3 {[%clk 0:00:20]} 33. Rxh6 {[%clk 0:00:09]}  Rg1+ {[%clk 0:00:16]} 34. Kc2 {[%clk 0:00:08]}  Rg2 {[%clk 0:00:17]} 35. Rh7+ {[%clk 0:00:07]}  Kb6 {[%clk 0:00:17]} 36. Rh6 {[%clk 0:00:08]}  Ka7 {[%clk 0:00:16]} 37. Kd3 {[%clk 0:00:08]}  Rg3+ {[%clk 0:00:15]} 38. Kc2 {[%clk 0:00:08]}  Rg2 {[%clk 0:00:16]} 39. Kd3 {[%clk 0:00:08]}  Rg3+ {[%clk 0:00:16]} 40. Ke2 {[%clk 0:00:08]}  Rg2+ {[%clk 0:00:16]} 41. Ke3 {[%clk 0:00:08]}  Rg3+ {[%clk 0:00:16]} 42. Ke2 {[%clk 0:00:08]}  Rg2+ {[%clk 0:00:17]} 43. Kd3 {[%clk 0:00:09]} 1/2-1/2


[Site "https://www.chess.com"]

[Event "Titled Tuesday Blitz January 17 Early 2023"]
[White "Tanenbaum, Zachary"]
[Black "Semenenko, Dmytry"]
[WhiteFideId "2060850"]
[BlackFideId "14118645"]
[WhiteElo "2261"]
[BlackElo "2113"]
[Result "1-0"]
[Round "02"]
[TimeControl "180+2"]
[Date "2023.01.17"]
[WhiteClock "0:00:25"]
[BlackClock "0:01:00"]

1. e4 {[%clk 0:03:00]}  Nf6 {[%clk 0:02:59]} 2. e5 {[%clk 0:03:00]}  Nd5 {[%clk 0:03:00]} 3. d4 {[%clk 0:03:01]}  d6 {[%clk 0:03:00]} 4. Nf3 {[%clk 0:03:02]}  Bg4 {[%clk 0:03:00]} 5. Be2 {[%clk 0:02:46]}  c6 {[%clk 0:03:00]} 6. O-O {[%clk 0:02:45]}  Bxf3 {[%clk 0:03:00]} 7. Bxf3 {[%clk 0:02:45]}  dxe5 {[%clk 0:03:01]} 8. dxe5 {[%clk 0:02:46]}  e6 {[%clk 0:03:01]} 9. Qe2 {[%clk 0:02:38]}  Nd7 {[%clk 0:03:00]} 10. c4 {[%clk 0:02:33]}  Ne7 {[%clk 0:03:00]} 11. Bf4 {[%clk 0:02:15]}  Ng6 {[%clk 0:03:00]} 12. Bg3 {[%clk 0:02:15]}  Qc7 {[%clk 0:03:00]} 13. Re1 {[%clk 0:02:14]}  Bc5 {[%clk 0:02:54]} 14. Nc3 {[%clk 0:01:49]}  Bd4 {[%clk 0:02:53]} 15. Rad1 {[%clk 0:01:49]}  Bxc3 {[%clk 0:02:24]} 16. bxc3 {[%clk 0:01:50]}  O-O-O {[%clk 0:02:18]} 17. Rd6 {[%clk 0:01:08]}  Nc5 {[%clk 0:01:51]} 18. Red1 {[%clk 0:01:08]}  Ne7 {[%clk 0:01:45]} 19. Qe3 {[%clk 0:01:02]}  Qa5 {[%clk 0:01:31]} 20. Bh4 {[%clk 0:00:37]}  f6 {[%clk 0:01:10]} 21. Rxd8+ {[%clk 0:00:30]}  Rxd8 {[%clk 0:01:09]} 22. Rxd8+ {[%clk 0:00:31]}  Kxd8 {[%clk 0:01:09]} 23. exf6 {[%clk 0:00:31]}  gxf6 {[%clk 0:01:03]} 24. Bxf6 {[%clk 0:00:30]}  Qxa2 {[%clk 0:01:03]} 25. Bxe7+ {[%clk 0:00:30]}  Ke8 {[%clk 0:01:02]} 26. Bh5+ {[%clk 0:00:26]}  Kd7 {[%clk 0:01:00]} 27. Qd4+ {[%clk 0:00:26]}  Kc7 {[%clk 0:01:00]} 28. Qd8# {[%clk 0:00:25]} 1-0


[Site "https://www.chess.com"]

[Event "Titled Tuesday Blitz January 17 Early 2023"]
[White "Agasarov, Benik"]
[Black "Devaev, Alexander"]
[WhiteFideId "13314823"]
[BlackFideId "4169395"]
[WhiteElo "2235"]
[BlackElo "2325"]
[Result "1-0"]
[Round "02"]
[TimeControl "180+2"]
[Date "2023.01.17"]
[WhiteClock "0:00:44"]
[BlackClock "0:00:01"]

1. d4 {[%clk 0:03:00]}  Nf6 {[%clk 0:02:58]} 2. c4 {[%clk 0:03:01]}  e6 {[%clk 0:02:59]} 3. Nc3 {[%clk 0:03:01]}  Bb4 {[%clk 0:02:59]} 4. Nf3 {[%clk 0:02:59]}  c5 {[%clk 0:03:00]} 5. g3 {[%clk 0:02:58]}  cxd4 {[%clk 0:02:59]} 6. Nxd4 {[%clk 0:02:58]}  Nc6 {[%clk 0:03:00]} 7. Bg2 {[%clk 0:02:58]}  Qb6 {[%clk 0:03:00]} 8. Nb5 {[%clk 0:02:52]}  a6 {[%clk 0:02:33]} 9. Be3 {[%clk 0:02:51]}  Qa5 {[%clk 0:02:29]} 10. Nd6+ {[%clk 0:02:51]}  Ke7 {[%clk 0:02:29]} 11. Nxc8+ {[%clk 0:02:40]}  Rhxc8 {[%clk 0:02:24]} 12. Bd2 {[%clk 0:02:39]}  Qc5 {[%clk 0:01:57]} 13. Rc1 {[%clk 0:02:30]}  Qh5 {[%clk 0:01:25]} 14. O-O {[%clk 0:02:23]}  Bc5 {[%clk 0:01:14]} 15. Na4 {[%clk 0:02:06]}  Ba7 {[%clk 0:01:11]} 16. c5 {[%clk 0:02:04]}  Kf8 {[%clk 0:01:04]} 17. Bf4 {[%clk 0:02:03]}  Kg8 {[%clk 0:01:03]} 18. Bd6 {[%clk 0:01:56]}  Ne8 {[%clk 0:00:58]} 19. Rc4 {[%clk 0:01:49]}  Rd8 {[%clk 0:00:35]} 20. Rh4 {[%clk 0:01:45]}  Qg6 {[%clk 0:00:32]} 21. Be4 {[%clk 0:01:44]}  f5 {[%clk 0:00:33]} 22. Bf3 {[%clk 0:01:43]}  Nxd6 {[%clk 0:00:26]} 23. Qxd6 {[%clk 0:01:41]}  Bb8 {[%clk 0:00:25]} 24. Qd2 {[%clk 0:01:38]}  Bc7 {[%clk 0:00:26]} 25. e4 {[%clk 0:01:29]}  Ne5 {[%clk 0:00:23]} 26. Bg2 {[%clk 0:01:29]}  h6 {[%clk 0:00:16]} 27. exf5 {[%clk 0:01:29]}  Qxf5 {[%clk 0:00:17]} 28. Rf4 {[%clk 0:01:28]}  Qg5 {[%clk 0:00:14]} 29. h4 {[%clk 0:01:27]}  Qe7 {[%clk 0:00:14]} 30. Bxb7 {[%clk 0:01:25]}  Rab8 {[%clk 0:00:14]} 31. Bg2 {[%clk 0:01:25]}  a5 {[%clk 0:00:11]} 32. Rd4 {[%clk 0:01:22]}  Nc6 {[%clk 0:00:07]} 33. Rd3 {[%clk 0:01:13]}  Nb4 {[%clk 0:00:07]} 34. Re3 {[%clk 0:01:12]}  Nxa2 {[%clk 0:00:07]} 35. Rfe1 {[%clk 0:01:09]}  Nb4 {[%clk 0:00:07]} 36. Nc3 {[%clk 0:01:08]}  Qf7 {[%clk 0:00:05]} 37. Rf3 {[%clk 0:01:08]}  Qe8 {[%clk 0:00:02]} 38. Ne4 {[%clk 0:01:08]}  Nc6 {[%clk 0:00:02]} 39. Rf6 {[%clk 0:00:59]}  Be5 {[%clk 0:00:02]} 40. Rf3 {[%clk 0:00:52]}  Rxb2 {[%clk 0:00:01]} 41. Qc1 {[%clk 0:00:50]}  Bd4 {[%clk 0:00:02]} 42. Rd1 {[%clk 0:00:47]}  Rdb8 {[%clk 0:00:01]} 43. Nd6 {[%clk 0:00:44]}  Qe7 {[%clk 0:00:01]} 44. Rf7 {[%clk 0:00:44]} 1-0


[Site "https://www.chess.com"]

[Event "Titled Tuesday Blitz January 17 Early 2023"]
[White "Bobkov, Vadim"]
[Black "Gressmann, Moritz"]
[WhiteFideId "34110876"]
[BlackFideId "24695084"]
[WhiteElo "2249"]
[BlackElo "2129"]
[Result "0-1"]
[Round "02"]
[TimeControl "180+2"]
[Date "2023.01.17"]
[WhiteClock "0:00:56"]
[BlackClock "0:01:07"]

1. d4 {[%clk 0:03:00]}  d5 {[%clk 0:02:58]} 2. c4 {[%clk 0:03:01]}  e6 {[%clk 0:02:57]} 3. Nc3 {[%clk 0:03:00]}  Nf6 {[%clk 0:02:57]} 4. cxd5 {[%clk 0:03:00]}  exd5 {[%clk 0:02:57]} 5. Bg5 {[%clk 0:03:00]}  Be7 {[%clk 0:02:57]} 6. e3 {[%clk 0:03:00]}  O-O {[%clk 0:02:57]} 7. Bd3 {[%clk 0:03:00]}  c5 {[%clk 0:02:51]} 8. Nge2 {[%clk 0:02:57]}  c4 {[%clk 0:02:49]} 9. Bc2 {[%clk 0:02:57]}  Bg4 {[%clk 0:02:48]} 10. f3 {[%clk 0:02:54]}  Bh5 {[%clk 0:02:48]} 11. Nf4 {[%clk 0:02:44]}  Bg6 {[%clk 0:02:45]} 12. Nxg6 {[%clk 0:02:43]}  hxg6 {[%clk 0:02:43]} 13. O-O {[%clk 0:02:42]}  Nc6 {[%clk 0:02:42]} 14. a3 {[%clk 0:02:30]}  Nh5 {[%clk 0:02:41]} 15. Bxe7 {[%clk 0:02:27]}  Nxe7 {[%clk 0:02:41]} 16. e4 {[%clk 0:02:26]}  dxe4 {[%clk 0:02:36]} 17. fxe4 {[%clk 0:02:26]}  Nc6 {[%clk 0:02:32]} 18. Nd5 {[%clk 0:02:07]}  Qh4 {[%clk 0:02:15]} 19. g4 {[%clk 0:01:55]}  Nf6 {[%clk 0:01:59]} 20. Nxf6+ {[%clk 0:01:42]}  gxf6 {[%clk 0:02:00]} 21. Ba4 {[%clk 0:01:40]}  Kg7 {[%clk 0:01:34]} 22. Bxc6 {[%clk 0:01:25]}  bxc6 {[%clk 0:01:35]} 23. Rc1 {[%clk 0:01:25]}  Rh8 {[%clk 0:01:34]} 24. Rf2 {[%clk 0:01:22]}  Rae8 {[%clk 0:01:26]} 25. Qf3 {[%clk 0:01:21]}  Qg5 {[%clk 0:01:17]} 26. Rxc4 {[%clk 0:01:18]}  Rh4 {[%clk 0:01:11]} 27. h3 {[%clk 0:01:12]}  Reh8 {[%clk 0:01:10]} 28. Kg2 {[%clk 0:01:09]}  Rxh3 {[%clk 0:01:08]} 29. Qxh3 {[%clk 0:01:01]}  Rxh3 {[%clk 0:01:07]} 30. Kxh3 {[%clk 0:01:02]}  Qe3+ {[%clk 0:01:07]} 31. Kg2 {[%clk 0:01:01]}  Qxe4+ {[%clk 0:01:08]} 32. Kg3 {[%clk 0:00:56]}  Qd3+ {[%clk 0:01:07]} 0-1


[Site "https://www.chess.com"]

[Event "Titled Tuesday Blitz January 17 Early 2023"]
[White "Perez Rodriguez, Jennifer"]
[Black "Melikyan, Gnel"]
[WhiteFideId "3507831"]
[BlackFideId "54109990"]
[WhiteElo "2242"]
[BlackElo "2238"]
[Result "0-1"]
[Round "02"]
[TimeControl "180+2"]
[Date "2023.01.17"]
[WhiteClock "0:02:00"]
[BlackClock "0:02:10"]

1. e4 {[%clk 0:03:00]}  Na6 {[%clk 0:02:55]} 2. d4 {[%clk 0:03:00]}  e5 {[%clk 0:02:54]} 3. Nf3 {[%clk 0:02:59]}  exd4 {[%clk 0:02:53]} 4. Bc4 {[%clk 0:02:59]}  Nc5 {[%clk 0:02:48]} 5. O-O {[%clk 0:02:54]}  d6 {[%clk 0:02:46]} 6. Qxd4 {[%clk 0:02:48]}  Be6 {[%clk 0:02:42]} 7. Nc3 {[%clk 0:02:45]}  Qf6 {[%clk 0:02:40]} 8. Qxf6 {[%clk 0:02:19]}  Nxf6 {[%clk 0:02:39]} 9. Bxe6 {[%clk 0:02:18]}  Nxe6 {[%clk 0:02:38]} 10. e5 {[%clk 0:02:18]}  dxe5 {[%clk 0:02:38]} 11. Nxe5 {[%clk 0:02:19]}  Bd6 {[%clk 0:02:34]} 12. Re1 {[%clk 0:02:18]}  Bxe5 {[%clk 0:02:30]} 13. Rxe5 {[%clk 0:02:17]}  O-O-O {[%clk 0:02:31]} 14. h3 {[%clk 0:02:11]}  Rhe8 {[%clk 0:02:26]} 15. Re1 {[%clk 0:02:10]}  Nd4 {[%clk 0:02:24]} 16. Rxe8 {[%clk 0:02:02]}  Rxe8 {[%clk 0:02:24]} 17. Bg5 {[%clk 0:02:02]}  Nxc2 {[%clk 0:02:17]} 18. Bxf6 {[%clk 0:02:02]}  Nxa1 {[%clk 0:02:13]} 19. Bxg7 {[%clk 0:02:03]}  Nc2 {[%clk 0:02:11]} 20. Kf1 {[%clk 0:02:00]}  Re1# {[%clk 0:02:10]} 0-1


[Site "https://www.chess.com"]

[Event "Titled Tuesday Blitz January 17 Early 2023"]
[White "Ordekalog"]
[Black "Pourkashiyan, Atousa"]
[BlackFideId "12502014"]
[WhiteElo "2578"]
[BlackElo "2282"]
[Result "0-1"]
[Round "02"]
[TimeControl "180+2"]
[Date "2023.01.17"]
[WhiteClock "0:00:01"]
[BlackClock "0:00:22"]

1. d4 {[%clk 0:03:00]}  Nf6 {[%clk 0:02:59]} 2. c4 {[%clk 0:03:00]}  e6 {[%clk 0:03:00]} 3. Nc3 {[%clk 0:02:58]}  Bb4 {[%clk 0:02:59]} 4. Bd2 {[%clk 0:02:58]}  O-O {[%clk 0:02:58]} 5. Rc1 {[%clk 0:02:58]}  d5 {[%clk 0:02:58]} 6. e3 {[%clk 0:02:57]}  c6 {[%clk 0:02:45]} 7. Nf3 {[%clk 0:02:57]}  Nbd7 {[%clk 0:02:37]} 8. Bd3 {[%clk 0:02:54]}  dxc4 {[%clk 0:02:35]} 9. Bxc4 {[%clk 0:02:53]}  b5 {[%clk 0:02:36]} 10. Bb3 {[%clk 0:02:51]}  a6 {[%clk 0:02:36]} 11. O-O {[%clk 0:02:50]}  Bb7 {[%clk 0:02:35]} 12. Re1 {[%clk 0:02:39]}  c5 {[%clk 0:02:16]} 13. a3 {[%clk 0:02:38]}  Ba5 {[%clk 0:02:11]} 14. Ba2 {[%clk 0:02:23]}  cxd4 {[%clk 0:02:04]} 15. exd4 {[%clk 0:02:18]}  Rc8 {[%clk 0:01:53]} 16. Bg5 {[%clk 0:02:00]}  h6 {[%clk 0:01:50]} 17. Bh4 {[%clk 0:01:58]}  Bxc3 {[%clk 0:01:46]} 18. bxc3 {[%clk 0:01:57]}  Qa5 {[%clk 0:01:45]} 19. Qd3 {[%clk 0:01:28]}  Qxa3 {[%clk 0:01:41]} 20. Bb1 {[%clk 0:01:27]}  Bxf3 {[%clk 0:01:16]} 21. Qxf3 {[%clk 0:01:24]}  b4 {[%clk 0:01:13]} 22. d5 {[%clk 0:00:40]}  Nxd5 {[%clk 0:01:02]} 23. Qe4 {[%clk 0:00:16]}  N7f6 {[%clk 0:01:02]} 24. Bxf6 {[%clk 0:00:15]}  Nxf6 {[%clk 0:01:03]} 25. Qxb4 {[%clk 0:00:14]}  Qxb4 {[%clk 0:01:01]} 26. cxb4 {[%clk 0:00:15]}  Rb8 {[%clk 0:01:02]} 27. Rc6 {[%clk 0:00:12]}  Rxb4 {[%clk 0:00:53]} 28. Rxa6 {[%clk 0:00:12]}  Rfb8 {[%clk 0:00:54]} 29. Bd3 {[%clk 0:00:12]}  Rd4 {[%clk 0:00:54]} 30. Bf1 {[%clk 0:00:10]}  Rb2 {[%clk 0:00:53]} 31. Ra8+ {[%clk 0:00:07]}  Kh7 {[%clk 0:00:53]} 32. Ra7 {[%clk 0:00:07]}  Kg6 {[%clk 0:00:53]} 33. h3 {[%clk 0:00:07]}  Rdd2 {[%clk 0:00:53]} 34. f4 {[%clk 0:00:05]}  Nd5 {[%clk 0:00:52]} 35. f5+ {[%clk 0:00:02]}  exf5 {[%clk 0:00:49]} 36. Ra6+ {[%clk 0:00:02]}  f6 {[%clk 0:00:46]} 37. Ra7 {[%clk 0:00:02]}  f4 {[%clk 0:00:45]} 38. Rc1 {[%clk 0:00:01]}  Ne3 {[%clk 0:00:28]} 39. Rcc7 {[%clk 0:00:01]}  Nxf1 {[%clk 0:00:22]} 0-1


[Site "https://www.chess.com"]

[Event "Titled Tuesday Blitz January 17 Early 2023"]
[White "Wilson, Elvin"]
[Black "Sielecki, Christof"]
[WhiteFideId "2014874"]
[BlackFideId "4620437"]
[WhiteElo "2183"]
[BlackElo "2419"]
[Result "0-1"]
[Round "02"]
[TimeControl "180+2"]
[Date "2023.01.17"]
[WhiteClock "0:00:03"]
[BlackClock "0:00:19"]

1. c4 {[%clk 0:03:00]}  e6 {[%clk 0:02:57]} 2. g3 {[%clk 0:02:58]}  d5 {[%clk 0:02:56]} 3. Bg2 {[%clk 0:02:59]}  Nf6 {[%clk 0:02:56]} 4. Nf3 {[%clk 0:02:59]}  dxc4 {[%clk 0:02:56]} 5. Qa4+ {[%clk 0:02:57]}  Bd7 {[%clk 0:02:55]} 6. Qxc4 {[%clk 0:02:58]}  c5 {[%clk 0:02:56]} 7. Qc2 {[%clk 0:02:50]}  Nc6 {[%clk 0:02:54]} 8. O-O {[%clk 0:02:50]}  Be7 {[%clk 0:02:52]} 9. Nc3 {[%clk 0:02:44]}  O-O {[%clk 0:02:52]} 10. Rd1 {[%clk 0:02:44]}  Rc8 {[%clk 0:02:40]} 11. Ne4 {[%clk 0:02:13]}  Nb4 {[%clk 0:02:30]} 12. Nxf6+ {[%clk 0:01:53]}  Bxf6 {[%clk 0:02:31]} 13. Qb1 {[%clk 0:01:53]}  Ba4 {[%clk 0:02:03]} 14. b3 {[%clk 0:01:48]}  Bxa1 {[%clk 0:02:00]} 15. Qxa1 {[%clk 0:01:48]}  Bc6 {[%clk 0:01:55]} 16. Bb2 {[%clk 0:01:47]}  f6 {[%clk 0:01:50]} 17. Qb1 {[%clk 0:01:42]}  e5 {[%clk 0:01:45]} 18. a3 {[%clk 0:01:30]}  Nd5 {[%clk 0:01:44]} 19. e3 {[%clk 0:01:29]}  Re8 {[%clk 0:01:42]} 20. Nh4 {[%clk 0:01:14]}  Ne7 {[%clk 0:01:35]} 21. Nf3 {[%clk 0:01:09]}  Qd7 {[%clk 0:01:27]} 22. d3 {[%clk 0:01:04]}  Rcd8 {[%clk 0:01:25]} 23. Qc2 {[%clk 0:01:01]}  b6 {[%clk 0:01:25]} 24. b4 {[%clk 0:00:51]}  Qb7 {[%clk 0:01:23]} 25. e4 {[%clk 0:00:48]}  cxb4 {[%clk 0:01:19]} 26. axb4 {[%clk 0:00:47]}  Ng6 {[%clk 0:01:06]} 27. b5 {[%clk 0:00:46]}  Bd7 {[%clk 0:01:04]} 28. d4 {[%clk 0:00:32]}  Bg4 {[%clk 0:00:58]} 29. d5 {[%clk 0:00:30]}  Nf8 {[%clk 0:00:50]} 30. Qc6 {[%clk 0:00:29]}  Qb8 {[%clk 0:00:45]} 31. Qc4 {[%clk 0:00:20]}  Nd7 {[%clk 0:00:39]} 32. Ra1 {[%clk 0:00:19]}  Nc5 {[%clk 0:00:37]} 33. Qa2 {[%clk 0:00:18]}  Re7 {[%clk 0:00:36]} 34. Nd2 {[%clk 0:00:17]}  Red7 {[%clk 0:00:32]} 35. f3 {[%clk 0:00:17]}  Bh5 {[%clk 0:00:32]} 36. Bf1 {[%clk 0:00:16]}  Bf7 {[%clk 0:00:32]} 37. Ba3 {[%clk 0:00:16]}  Rc8 {[%clk 0:00:31]} 38. Qb2 {[%clk 0:00:15]}  Kh8 {[%clk 0:00:31]} 39. Rc1 {[%clk 0:00:14]}  Rdc7 {[%clk 0:00:30]} 40. Re1 {[%clk 0:00:14]}  Na4 {[%clk 0:00:29]} 41. Qb4 {[%clk 0:00:13]}  Nc5 {[%clk 0:00:28]} 42. Qb1 {[%clk 0:00:13]}  h6 {[%clk 0:00:26]} 43. Bb2 {[%clk 0:00:13]}  Nd7 {[%clk 0:00:25]} 44. Ba1 {[%clk 0:00:13]}  Rc2 {[%clk 0:00:24]} 45. Nb3 {[%clk 0:00:13]}  Qc7 {[%clk 0:00:24]} 46. Qd1 {[%clk 0:00:09]}  Ra2 {[%clk 0:00:23]} 47. Re2 {[%clk 0:00:07]}  Rxe2 {[%clk 0:00:22]} 48. Bxe2 {[%clk 0:00:07]}  Qc2 {[%clk 0:00:22]} 49. f4 {[%clk 0:00:03]}  Qxe4 {[%clk 0:00:20]} 50. fxe5 {[%clk 0:00:03]}  Bxd5 {[%clk 0:00:19]} 0-1


[Site "https://www.chess.com"]

[Event "Titled Tuesday Blitz January 17 Early 2023"]
[White "Le Ruyet, Leopold"]
[Black "Fathy, Elameir"]
[WhiteFideId "645923"]
[BlackFideId "10600396"]
[WhiteElo "2245"]
[BlackElo "2300"]
[Result "1-0"]
[Round "02"]
[TimeControl "180+2"]
[Date "2023.01.17"]
[WhiteClock "0:00:02"]
[BlackClock "0:00:02"]

1. e4 {[%clk 0:03:00]}  c5 {[%clk 0:03:00]} 2. Nc3 {[%clk 0:03:00]}  d6 {[%clk 0:03:00]} 3. f4 {[%clk 0:03:00]}  g6 {[%clk 0:03:00]} 4. Nf3 {[%clk 0:03:00]}  Bg7 {[%clk 0:03:00]} 5. Bb5+ {[%clk 0:03:00]}  Bd7 {[%clk 0:02:58]} 6. Bc4 {[%clk 0:02:59]}  Nc6 {[%clk 0:02:57]} 7. O-O {[%clk 0:02:53]}  e6 {[%clk 0:02:48]} 8. f5 {[%clk 0:02:54]}  gxf5 {[%clk 0:02:36]} 9. d3 {[%clk 0:02:54]}  Nge7 {[%clk 0:02:28]} 10. Bg5 {[%clk 0:02:27]}  f6 {[%clk 0:02:08]} 11. Nh4 {[%clk 0:01:57]}  O-O {[%clk 0:01:38]} 12. Bf4 {[%clk 0:01:24]}  Ne5 {[%clk 0:01:03]} 13. Bb3 {[%clk 0:01:09]}  fxe4 {[%clk 0:00:49]} 14. Nxe4 {[%clk 0:00:59]}  Qc7 {[%clk 0:00:29]} 15. Qd2 {[%clk 0:00:40]}  d5 {[%clk 0:00:29]} 16. Nc3 {[%clk 0:00:19]}  N7g6 {[%clk 0:00:15]} 17. Nxg6 {[%clk 0:00:17]}  hxg6 {[%clk 0:00:15]} 18. Rae1 {[%clk 0:00:16]}  b5 {[%clk 0:00:07]} 19. Nxd5 {[%clk 0:00:14]}  exd5 {[%clk 0:00:05]} 20. Bxd5+ {[%clk 0:00:15]}  Kh7 {[%clk 0:00:06]} 21. Qf2 {[%clk 0:00:12]}  g5 {[%clk 0:00:03]} 22. Bxe5 {[%clk 0:00:07]}  fxe5 {[%clk 0:00:04]} 23. Qe2 {[%clk 0:00:06]}  Rxf1+ {[%clk 0:00:04]} 24. Rxf1 {[%clk 0:00:07]}  Be8 {[%clk 0:00:02]} 25. Bxa8 {[%clk 0:00:05]}  c4 {[%clk 0:00:02]} 26. Be4+ {[%clk 0:00:05]}  Kh8 {[%clk 0:00:02]} 27. Qe3 {[%clk 0:00:03]}  Kg8 {[%clk 0:00:01]} 28. Bd5+ {[%clk 0:00:03]}  Bf7 {[%clk 0:00:01]} 29. Bxf7+ {[%clk 0:00:03]}  Kh8 {[%clk 0:00:02]} 30. Qh3+ {[%clk 0:00:02]} 1-0


[Site "https://www.chess.com"]